Cogmind - Beta 17.1 @@@ ROGUE MODE // 2026.08.30 @ 18:40:34 Player: Finn Result: Destroyed by Y-45 Defender with Heavy Assault Rifle Performance ------------- Evolutions (1) 500 Regions Visited (2) 400 Robots Destroyed (15) 75 Value Destroyed (366) 366 Prototype IDs (0) 0 Alien Tech Used (0) 0 Bonus (0) 0 TOTAL SCORE: 1341 Bonus ------- None Cogmind --------- Core Integrity 0/400 Matter 300/300 Energy 41/250 System Corruption 0% Temperature Cool (2) Movement Treading (160) Location -9/Materials Parts ------- > --- POWER (1) -------- Ion Engine > --- PROPULSION (2) --- Light Treads Light Treads > --- UTILITY (4) ------ Targeting Computer Improved Targeting Computer > --- WEAPON (2) ------- (None) > --- INVENTORY (5) ---- (None) Peak State ------------ > --- POWER ------------ Ion Engine > --- PROPULSION ------- Wheel Compact Wheel > --- UTILITY ---------- Small Storage Unit Improved Targeting Computer Core Shielding Utility Shielding > --- WEAPON ----------- Beam Rifle Assault Rifle > --- INVENTORY -------- Light Treads Light Treads Aluminum Leg Aluminum Leg Targeting Computer Light Assault Rifle Light Assault Rifle [Rating: 11] Favorites ----------- Power Ion Engine Engine Ion Engine Propulsion Wheel Treads Light Treads Leg Aluminum Leg Wheel Wheel Utility Small Storage Unit Storage Small Storage Unit Processor Improved Targeting Computer Protection Core Shielding Weapon Assault Rifle Energy Gun Beam Rifle Ballistic Gun Assault Rifle Special Melee Weapon Datajack Build | -11 -10 -9 ------- Run | Yrd Mat Mat Slots Evolved 2 | . . 2 Power . | . . . Propulsion . | . . . Utility 2 | . . 2 Weapon . | . . . Parts Attached 20 | 6 2 12 Power 3 | 1 1 1 Engine 3 | 1 1 1 Core . | . . . Reactor . | . . . Propulsion 6 | 2 . 4 Treads 2 | . . 2 Leg 2 | . . 2 Wheel 2 | 2 . . Hover . | . . . Flight . | . . . Utility 5 | 1 1 3 Device . | . . . Storage 1 | 1 . . Processor 2 | . . 2 Hackware . | . . . Protection 2 | . 1 1 Artifact . | . . . Weapon 6 | 2 . 4 Energy Gun 2 | . . 2 Energy Cannon . | . . . Ballistic Gun 3 | 2 . 1 Ballistic Cannon . | . . . Launcher . | . . . Special Weapon . | . . . Impact Weapon . | . . . Slashing Weapon . | . . . Piercing Weapon . | . . . Special Melee Weapon 1 | . . 1 Unidentified Prototypes . | . . . Parts Lost 15 | . 1 14 Power 2 | . 1 1 Propulsion 4 | . . 4 Utility 3 | . . 3 Weapon 6 | . . 6 Highest Loss Streak 11 | . 1 11 To Critical Strikes . | . . . Average Backups 6 | 3 6 6 Power . | . . . Propulsion 3 | 1 4 2 Utility . | . . 1 Weapon 1 | 1 1 1 Tool/Special . | . . . Unused Backups . | . . . Power . | . . . Propulsion . | . . . Utility . | . . . Weapon . | . . . Tool/Special . | . . . Average Slot Usage (%) 89 | . 88 90 Engine 12 | . 14 10 Leg 5 | . . 11 Wheel 19 | . 28 8 Storage 12 | . 14 11 Processor 4 | . . 9 Protection 10 | . 3 19 Energy Gun 4 | . . 9 Ballistic Gun 19 | . 28 9 Peak Build Rating 11 | 6 7 11 Average Rating 7 | 4 6 9 On Entrance 4 | . 6 7 Avg Prop Armor Cover (%) . | . . . Naked Turns . | . . . Heaviest Build 17 | 13 14 17 Greatest Support 40 | 26 26 40 Greatest Overweight (x) 2 | . . 2 Average Overweight (x) . | . . . Largest Inventory Capacity 8 | 8 8 8 Average Capacity 7 | 7 8 7 Most Carried 8 | 8 7 8 Average Carried 6 | 4 6 6 Final Capacity 8 | 8 8 5 Final Carried 6 | 6 6 . Class Distribution -------------------- 100% | Mutant Dominant Class ---------------- Mutant | -10/Materials Mutant | -9/Materials Resources | -11 -10 -9 ----------- Run | Yrd Mat Mat Matter Collected 469 | 207 33 229 Remotely . | . . . Salvage Created 490 | . 97 393 Parts 32 | . 9 23 Haulers Intercepted . | . . . Recyclers Shooed . | . . . Parts Field Recycled . | . . . Retrieved Matter . | . . . Parts Self-Destructed . | . . . Prevented . | . . . Parts Restored . | . . . Kills | -11 -10 -9 ------- Run | Yrd Mat Mat Combat Hostiles Destroyed 15 | . 4 11 Guns 15 | . 4 11 Classes Destroyed 3 | . 2 1 Swarmer 7 | . 3 4 Grunt 7 | . 1 6 Sentry 1 | . . 1 Best Kill Streak 6 | . 3 6 Combat Bots Only 6 | . 3 6 Max Kills in Single Turn 1 | . 1 1 Gunslinging . | . . . Exploded . | . . . Melee . | . . . Uniques/NPCs Destroyed . | . . . Combat | -11 -10 -9 -------- Run | Yrd Mat Mat Hostile Shots Fired 183 | . 63 120 Missed 54 | . 22 32 Hits 129 | . 41 88 Melee 11 | . . 11 Projectile 118 | . 41 77 Critical Strikes 2 | . . 2 Damage Taken 1662 | . 376 1286 Core 477 | . 75 402 Absorbed by Shields . | . . . Redirected to Shielding 103 | . 13 90 Core Remaining (%) 85 | 100 70 . Volleys Fired 65 | . 17 48 Largest 2 | . 2 2 Hottest 76 | . 40 76 Shots Fired 110 | . 34 76 Gun 110 | . 34 76 Cannon . | . . . Launcher . | . . . Special . | . . . Kinetic 62 | . 34 28 Thermal 48 | . . 48 Explosive . | . . . Electromagnetic . | . . . Robot Hit Streak 6 | . 5 6 Robot Miss Streak 5 | . 5 3 Penetration Max . | . . . Secondary Targets 2 | . 1 1 Max Gunslinging Chain 1 | . 1 1 Shots Hit Robots 65 | . 16 49 Core Hits 26 | . 9 17 Critical Kills . | . . . Critical Parts Destroyed 1 | . . 1 Critical Strikes 4 | . . 4 Burn 3 | . . 3 Destroy 1 | . . 1 Melee Attacks 1 | . . 1 Impact . | . . . Slashing . | . . . Piercing . | . . . Sneak Attacks . | . . . Combat Hostiles . | . . . Follow-up Attacks . | . . . Damage Inflicted 758 | . 151 607 Guns 758 | . 151 607 Cannons . | . . . Explosions . | . . . Melee . | . . . Ramming . | . . . Kinetic 350 | . 151 199 Thermal 408 | . . 408 Explosive . | . . . Electromagnetic . | . . . Impact . | . . . Slashing . | . . . Piercing . | . . . Highest Corruption . | . . . Average Corruption . | . . . Corruption Purged . | . . . Corruption Blocked . | . . . Overload Shots . | . . . Overflow Damage . | . . . Projectiles . | . . . Explosions . | . . . Melee . | . . . Knockbacks . | . . . Impact . | . . . Kinetic . | . . . Secondary . | . . . Self-Inflicted Damage . | . . . Shots . | . . . Rammed . | . . . Targets Rammed . | . . . Kicked . | . . . Crushed . | . . . Highest Temperature 129 | . 26 129 Average Temperature 43 | . 15 44 Received Heat Transfer 432 | . 84 348 Siege Activations . | . . . Martial Activations . | . . . Shielding Activations . | . . . Robots Disrupted . | . . . Combat Hostiles . | . . . Robots Corrupted . | . . . Combat Hostiles . | . . . Parts Fried . | . . . Impact Corruptions . | . . . Robots Melted . | . . . Combat Hostiles . | . . . Parts Melted 1 | . . 1 Heat Transferred 1259 | . . 1259 Parts Sabotaged . | . . . Parts Stolen . | . . . Parts Stripped . | . . . Power Chain Reactions . | . . . Alert | -11 -10 -9 ------- Run | Yrd Mat Mat Maximum Alert Level . | . . . Low Security (%) 100 | 100 100 100 Level 1 . | . . . Level 2 . | . . . Level 3 . | . . . Level 4 . | . . . Level 5 . | . . . High Security . | . . . Max Security . | . . . Peak Influence 135 | . 79 135 Initial 29 | . . 29 Average 20 | . 12 31 Influence Increases 398 | . 137 261 Destroy 0b10 Robot/C 300 | . 80 220 Destroy Leader 60 | . 20 40 Successful Hack 7 | . 7 . Destroy Structure 1 | . . 1 Lose Combat Pursuer 30 | . 30 . Influence Decreases 397 | . 66 331 Entered New Map 42 | . . 42 Time Decay 215 | . 56 159 Lost Part 140 | . 10 130 Squads Dispatched 4 | . 2 2 Investigation 1 | . . 1 Extermination . | . . . Reinforcement 3 | . 2 1 Assault . | . . . Garrison . | . . . Intercept . | . . . Searches Triggered . | . . . Construction Impeded . | . . . Haulers Reinforced . | . . . Active Scanning Responses . | . . . Cargo Convoy Interrupts . | . . . Stealth | -11 -10 -9 --------- Run | Yrd Mat Mat Distress Signals 1 | . 1 . Communications Jammed . | . . . Distress Signals . | . . . Times Spotted 30 | . 14 16 Peak Tracking Total 10 | . 10 5 Tactical Retreats 1 | . 1 . Traps | -11 -10 -9 ------- Run | Yrd Mat Mat Traps Triggered 1 | . . 1 Indirectly . | . . . Trap Hack Attempts . | . . . Triggered . | . . . Disarmed . | . . . Reprogrammed . | . . . Reused . | . . . Traps Extracted . | . . . Installed . | . . . Triggered . | . . . Machines | -11 -10 -9 ---------- Run | Yrd Mat Mat Machines Disabled . | . . . Max in Single Turn . | . . . Machines Repaired . | . . . Machines Dismantled . | . . . Machines Sabotaged . | . . . Overloaded Fab Kills . | . . . Hacking | -11 -10 -9 --------- Run | Yrd Mat Mat Machines Accessed 2 | . 1 1 Terminals 2 | . 1 1 Fabricators . | . . . Repair Stations . | . . . Recycling Units . | . . . Scanalyzers . | . . . Garrison Access . | . . . Total Hacks 3 | . 1 2 Successful 1 | . 1 . Failed 2 | . . 2 Catastrophic 2 | . . 2 Database Lockouts . | . . . Manual . | . . . Terminals 3 | . 1 2 Fabricators . | . . . Repair Stations . | . . . Recycling Units . | . . . Scanalyzers . | . . . Garrison Access . | . . . Terminal Hacks 1 | . 1 . Branch Access Points 1 | . 1 . Fabricator Hacks . | . . . Repair Station Hacks . | . . . Recycling Unit Hacks . | . . . Scanalyzer . | . . . Garrison Access Hacks . | . . . Unauthorized Hacks . | . . . Terminals . | . . . Fabricators . | . . . Repair Stations . | . . . Recycling Units . | . . . Scanalyzers . | . . . Garrison Access . | . . . Data Cores Recovered . | . . . Used . | . . . Hacking Detections 2 | . 1 1 Full Trace Events 1 | . . 1 Feedback Events . | . . . Feedback Blocked . | . . . Robot Schematics Acquired . | . . . Robots Built . | . . . Authchips . | . . . Time . | . . . Total Robot Build Rating . | . . . Part Schematics Acquired . | . . . Parts Built . | . . . Authchips . | . . . Time . | . . . Total Part Build Rating . | . . . Part Studies Acquired . | . . . Parts Repaired . | . . . Time . | . . . Parts Recycled . | . . . Recycled Matter . | . . . Retrieved Matter . | . . . Retrieved Components . | . . . Parts Scanalyzed . | . . . Part Schematics Acquired . | . . . Parts Damaged . | . . . Bothacking | -11 -10 -9 ------------ Run | Yrd Mat Mat Used RIF Installer . | . . . Robots Hacked 1 | . . 1 Non-combat . | . . . Combat 1 | . . 1 Robot Hacks Applied 1 | . . 1 parse_system 1 | . . 1 Relay Couplers Released . | . . . Fabnet Peak Effective % . | . . . Robots Rewired . | . . . Allies Hacked . | . . . Hacks Repelled . | . . . Allies | -11 -10 -9 -------- Run | Yrd Mat Mat Total Allies . | . . . Largest Group . | . . . Highest-Rated Group . | . . . Highest-Rated Ally . | . . . Total Orders . | . . . Ally Attacks . | . . . Total Damage . | . . . Kills . | . . . Allies Corrupted . | . . . Allies Melted . | . . . Intel | -11 -10 -9 ------- Run | Yrd Mat Mat Active Infowar (turns) . | . . . Robot Analysis Total . | . . . Derelict Logs Recovered . | . . . Drone Launches . | . . . Drone Recoveries . | . . . Exploration | -11 -10 -9 ------------- Run | Yrd Mat Mat Turns Passed 1103 | 55 563 485 Spaces Moved 489 | 44 194 251 Core 14 | 6 . 8 Treads 1 | . . 1 Legs 56 | . . 56 Wheels 418 | 38 194 186 Hover . | . . . Flight . | . . . Fastest Speed 50 | 50 90 90 Average Speed 93 | 84 90 98 Slowest Speed 190 | 90 90 190 Overloaded Moves . | . . . Propulsion Burnouts . | . . . Robots Hopped . | . . . Potential Cave-ins . | . . . Cave-ins Triggered . | . . . Exploration Rate (%) 25 | 3 53 20 Regions Visited 2 Branch Regions . Pre-discovered Areas . | . . . Known Exits Taken . | . . . Unknown Exits Taken 2 | 1 1 . Scrap Searched . | . . . Spaces Dug . | . . . Terrain Destroyed . | . . . Melee . | . . . Projectile . | . . . AOE . | . . . Terrain Rammed . | . . . Walls Destroyed . | . . . Machines Disabled . | . . . Actions | -11 -10 -9 --------- Run | Yrd Mat Mat Total 1027 | 61 551 415 Wait 432 | . 337 95 Move 487 | 43 193 251 Hop . | . . . Pick Up 20 | 12 2 6 Fast Attach . | . . . Attach 20 | 6 2 12 Detach . | . . . Swap 2 | . . 2 Drop . | . . . Fire 65 | . 17 48 Melee 1 | . . 1 Ram . | . . . Kick . | . . . Crush . | . . . Escape Stasis . | . . . Rewire . | . . . Trap . | . . . Miscellaneous . | . . . Route ------- -11/Scrapyard -10/Materials (discovered 3 exits: *Mat / *Min x2) -9/Materials History --------- Turn | Location | Event 2 | -11/Scrapyard | Met Revision 17 23 | -11/Scrapyard | Discovered new exit (range 16) 56 | -11/Scrapyard | Entered Materials 304 | -10/Materials | Build established: Mutant 474 | -10/Materials | Discovered new exit (range 16) 532 | -10/Materials | Identified exit to Mines 604 | -10/Materials | Discovered new exit (range 16) 619 | -10/Materials | Entered another Materials area 619 | -9/Materials | Evolved 2 slots: Utility x2 1073 | -9/Materials | Core integrity fell below 50% 1092 | -9/Materials | Core integrity fell below 20% 1104 | -9/Materials | Destroyed by Y-45 Defender with Heavy Assault Rifle Last Messages --------------- 01062_ Aluminum Leg destroyed. 01063_ K-01 Serf collects debris. 01064_ U-05 Engineer builds a Door. 01069_ Core Shielding destroyed. 01074_ Beam Rifle destroyed. 01074_ Lgt. Assault Rifle destroyed. 01075_ K-01 Serf collects debris. 01077_ Aluminum Leg destroyed. 01077_ Jacked L-31 Rogue... >>parse_system Reading system data... 01079_ Datajack destroyed. 01081_ Acquired 3 matter. 01083_ Acquired Sml. Laser. 01084_ Lgt. Assault Rifle destroyed. 01099_ Sml. Laser destroyed. 01101_ L-31 Rogue destroyed. 01102_ Utility Shielding destroyed. 01102_ Sml. Storage Unit destroyed. 01104_ Acquired 40 matter. Map ----- +----------------------------------------------------+ | | | | | | | | | | | | | | | | | | | | | | | ?????????????????????????????????????????????????? | | ???????????????????????????#?????????????????????? | | ????????????????????????#?? ????????????????????? | | ????????????????????????? "" ]??????????????????? | | ????????????????????????? "T ]]?????????????????? | | ????????????????????????#?"" #????########???? | | ????????????????????????# ##???# """ #???? | | ????????????????????????# """ #?### """ #???? | | ????????????????????????? """ #??# + """ #???? | | ?????????????????????????? """ #??#%# #???? | | ??????????????????????????? ????#*# #???? | | ??????????????????????????###+###???#[# #???? | | ????????????####+########## g%*%##### ####+####### | | ????????? = "=! =! ! | | ????????? @= "T *=* =% | | ????????? g % !%= | | ????????????############### Y k################ # | | ??????????????????????????## Y ##??????????????# # | | ???????????????????????????# #???????????????# # | | ???????????????????????????# #???????????????# # | | ???????????????????????????# #???????????????# # | | ???????????????????????????# #???????????????# # | | ???????????????????????????# #??????????????? | | ???????????????????????????# #??????????????? | | ??????????????????????????? ??????????????? | | ???????????????????????????] ???????????????### | | ?????????????????????????? ?????????????????? | | ??????????????????????????# ?????????????????? | | ??????????????????????????# ??????????????????? | | ???????????????????????????#?????????????????????? | | ?????????????????????????????????????????????????? | | ?????????????????????????????????????????????????? | | ?????????????????????????????????????????????????? | | ?????????????????????????????????????????????????? | | ?????????????????????????????????????????????????? | | ?????????????????????????????????????????????????? | | ?????????????????????????????????????????????????? | | ?????????????????????????????????????????????????? | | ?????????????????????????????????????????????????? | +----------------------------------------------------+ Best States ------------- Heat Dissipation 28 Energy Generation 10 Energy Capacity 250 Matter Stores 297 Matter Capacity 300 Sight Range 16 Terrain Scan Density 10 Core Shielding 20 Utility Shielding 33 Evasion (%) 55 Targeting Accuracy 6 Item Schematics ----------------- None Robot Schematics ------------------ None Fabricated ------------ Nothing Repaired ---------- Nothing Studied --------- None Alien Tech Used ----------------- None Achievements -------------- You Again Challenges ------------ None Game ------ Seed ForceBraceCoupler Manual? 0 Play Time 00:10:54 Cumulative 24.7 hours Start 2026.08.30 @ 18:33:02 End 2026.08.30 @ 18:40:34 Sessions 1 Manual Loads 0 Difficulty Rogue Special Mode None Game No. 55 Rogue 38 Adventurer 15 Explorer 2 Win Type - Total 0 Types 0/0/0/0/0/0/0/0/0/0 Lore% 23 Gallery% 22 Achievement% 20 Wizard Run 0 Options --------- Layout 1 ASCII 0 Keyboard 0 Movement Mouse Keybinds 0 Fullscreen 1 Font 24/Smallcaps Map View 50x35 Zoom Use 0% Tactical HUD 1 Map Filters NONE Filters NONE Steam 1 RUN: 35692010-1693-4eb5-886a-9c2de8fe05a8